bitfinex/quotes_BTCUSD_20250530
["timestamp","ask_amount","ask_price","bid_price","bid_amount"]
[1748567796384,0.18950161,105540.0,105530.0,0.24561956]
[1748567796594,0.00947454,105540.0,105530.0,0.37457578]
[1748567796806,0.03789879,105540.0,105530.0,0.35562509]
[1748567797023,0.03789933,105540.0,105530.0,0.36510052]
[1748567797262,0.22740094,105540.0,105530.0,0.35562509]
[1748567797499,0.03789933,105540.0,105530.0,0.37457604]
[1748567797740,0.22740094,105540.0,105530.0,0.3651007]
[1748567797940,0.02842416,105540.0,105530.0,0.37457604]
[1748567798143,0.01894881,105540.0,105530.0,0.37457604]
[1748567798349,0.01894773,105550.0,105540.0,0.02842416]
[1748567798546,0.21790547,105550.0,105540.0,0.29003055]
[1748567798905,0.21790547,105550.0,105540.0,0.34843055]
[1748567799512,0.21790547,105550.0,105540.0,0.35790536]
[1748567799725,0.21790547,105550.0,105540.0,0.81352504]
[1748567799909,0.21790547,105550.0,105540.0,0.75043055]
[1748567800121,0.21790547,105550.0,105540.0,0.76938026]
[1748567800554,0.21790547,105550.0,105540.0,0.77038026]
[1748567801231,0.21790547,105550.0,105540.0,0.77985498]
[1748567801437,0.02842182,105550.0,105540.0,0.78932907]
[1748567801648,0.22737965,105550.0,105540.0,0.77985462]
[1748567802691,0.21790592,105550.0,105540.0,0.76090527]
[1748567803022,0.21790592,105550.0,105540.0,0.7703799]
[1748567803434,0.00947373,105550.0,105540.0,0.77985444]
[1748567803638,0.03789528,105550.0,105540.0,0.78932889]
[1748567803934,0.01894719,105550.0,105540.0,0.78932889]
[1748567804144,0.03789528,105550.0,105540.0,0.78932889]
[1748567804350,0.037896,105550.0,105540.0,0.77985444]
[1748567804889,0.02842182,105550.0,105540.0,0.78932889]
[1748567805297,0.00947346,105550.0,105540.0,0.78932889]
[1748567805459,0.01894701,105550.0,105540.0,0.78932889]
[1748567805659,0.02842065,105550.0,105540.0,0.78932889]
[1748567805859,0.19893889,105560.0,105550.0,0.27460538]
[1748567805860,0.22735756,105560.0,105550.0,0.27460538]
[1748567806122,0.59275756,105560.0,105550.0,0.36565942]
[1748567806319,0.22735756,105560.0,105550.0,0.37513306]
[1748567806572,0.59275756,105560.0,105550.0,0.36565942]
[1748567806714,0.59275756,105560.0,105550.0,0.37513306]
[1748567806715,0.01894557,105560.0,105550.0,0.37513306]
[1748567806917,0.19902704,105570.0,105560.0,0.19893889]
[1748567807178,0.56434704,105570.0,105560.0,0.11965395]
[1748567807396,0.56434704,105570.0,105560.0,0.32806594]
[1748567807582,0.56434704,105570.0,105560.0,0.15912723]
[1748567808202,0.55487466,105570.0,105560.0,0.14965395]
[1748567808631,0.55475466,105570.0,105560.0,0.14965395]
[1748567808848,0.55475466,105570.0,105560.0,0.18640975]
[1748567809062,0.55475466,105570.0,105560.0,0.14965395]
[1748567809288,0.55475466,105570.0,105560.0,0.09105395]
[1748567809514,0.55475466,105570.0,105560.0,0.49105395]
[1748567810172,0.54845114,105540.0,105530.0,0.00350889]
[1748567810389,0.19901421,105520.0,105510.0,0.02182607]
[1748567810601,0.56405421,105520.0,105510.0,0.02182607]
[1748567810807,0.56405421,105520.0,105510.0,0.02187509]
[1748567811857,0.38387329,105520.0,105510.0,0.31196212]
[1748567812075,0.58288768,105520.0,105510.0,0.36996212]
[1748567812326,0.58288768,105520.0,105510.0,0.37943953]
[1748567812532,0.58288768,105520.0,105510.0,0.40827995]
[1748567812533,0.39335016,105520.0,105510.0,0.40827995]
[1748567812773,0.02843016,105520.0,105510.0,0.41775718]
[1748567812972,0.21796768,105520.0,105510.0,0.38932522]
[1748567813186,0.21796768,105520.0,105510.0,0.39032522]
[1748567813621,0.21896768,105520.0,105510.0,0.39880272]
[1748567814046,0.21796768,105520.0,105510.0,0.79880272]
[1748567814253,0.21796768,105520.0,105510.0,0.80080272]
[1748567814464,0.21796768,105520.0,105510.0,0.93512272]
[1748567814893,0.20849108,105520.0,105510.0,0.9256454]
[1748567815102,0.19901439,105520.0,105510.0,0.72661214]
[1748567815320,0.19901439,105520.0,105510.0,0.66861214]
[1748567815567,0.19901439,105520.0,105510.0,0.53429214]
[1748567815810,0.19901439,105520.0,105510.0,0.42387509]
[1748567816492,0.19901439,105520.0,105510.0,0.42287509]
[1748567816922,0.19901439,105520.0,105510.0,0.42387509]
[1748567817348,0.19901439,105520.0,105510.0,0.42287509]
[1748567817574,0.19901439,105520.0,105510.0,0.02187509]
[1748567817793,0.27235524,105520.0,105510.0,0.02287509]
[1748567818242,0.19901439,105520.0,105510.0,0.02287509]
[1748567818465,0.19901439,105520.0,105510.0,0.04506774]
[1748567818692,0.19901439,105520.0,105510.0,0.02287509]
[1748567819564,0.25861439,105520.0,105510.0,0.02387509]
[1748567819777,0.25861439,105520.0,105510.0,0.02287509]
[1748567820062,0.25861439,105520.0,105510.0,0.02187509]
[1748567820282,0.26061439,105520.0,105510.0,0.02287509]
[1748567821332,0.27515524,105520.0,105510.0,0.02187509]
[1748567821758,0.27715524,105520.0,105510.0,0.02187509]
[1748567821971,0.70820919,105520.0,105510.0,0.02187509]
[1748567823059,0.71820919,105520.0,105510.0,0.02187509]
[1748567823272,0.71820919,105520.0,105470.0,0.03]
[1748567823273,0.20858947,105470.0,105460.0,0.00350915]
[1748567823487,0.20858947,105470.0,105450.0,0.03399574]
[1748567823488,0.01896353,105460.0,105450.0,0.26672867]
[1748567823706,0.01896353,105460.0,105450.0,0.78828167]
[1748567823707,0.02091448,105460.0,105450.0,0.78828167]
[1748567823947,0.02091448,105460.0,105450.0,0.31126444]
[1748567823948,0.00948163,105460.0,105450.0,0.31126444]
[1748567824192,0.20858965,105470.0,105460.0,0.60660952]
[1748567824413,0.20858965,105470.0,105460.0,0.36714528]
[1748567824414,0.03792365,105470.0,105460.0,0.36714528]
[1748567824630,0.21806976,105470.0,105460.0,0.09205395]
[1748567824847,0.19910856,105470.0,105460.0,0.001]
[1748567825483,0.56310856,105470.0,105460.0,0.001]
[1748567826622,0.55362738,105470.0,105450.0,0.57208415]
[1748567826873,0.02091538,105460.0,105450.0,0.61970171]
[1748567827087,0.02091538,105460.0,105450.0,0.62618451]
[1748567827313,0.02091538,105460.0,105450.0,0.00049054]
[1748567827314,0.21056074,105460.0,105450.0,0.00049054]
[1748567827531,0.20860979,105460.0,105450.0,0.00049054]
[1748567827963,0.20860979,105460.0,105450.0,0.00549054]
[1748567828189,0.20860979,105460.0,105450.0,0.00349054]
[1748567829265,0.20860979,105460.0,105450.0,0.00049054]
[1748567829707,0.20860979,105460.0,105450.0,0.00249054]
[1748567829921,0.57244979,105460.0,105450.0,0.00249054]
[1748567830137,0.20860979,105460.0,105450.0,0.00249054]
[1748567830361,0.56296762,105460.0,105450.0,0.00249054]
[1748567830579,0.19912762,105460.0,105450.0,0.19015388]
[1748567830842,0.56292762,105460.0,105450.0,0.00049054]
[1748567831081,0.56292762,105460.0,105450.0,0.00149054]
[1748567831750,0.19912762,105460.0,105450.0,0.00149054]
[1748567831970,0.56288762,105460.0,105450.0,0.00149054]
[1748567834084,0.19912762,105460.0,105450.0,0.00149054]
[1748567834321,0.56280762,105460.0,105450.0,0.00149054]
[1748567835415,0.19912762,105460.0,105450.0,0.00049054]
[1748567835630,0.56272762,105460.0,105450.0,0.00149054]
[1748567836069,0.56272762,105460.0,105450.0,0.00049054]
[1748567836500,0.56372762,105460.0,105450.0,0.00049054]
[1748567840185,0.59152762,105460.0,105450.0,0.00049054]
[1748567841586,0.56372762,105460.0,105450.0,0.00049054]
[1748567842237,0.23052762,105460.0,105450.0,0.00049054]
[1748567842446,0.72746242,105460.0,105450.0,0.00049054]
[1748567844167,0.73710283,105460.0,105450.0,0.00049054]
[1748567844373,0.73698283,105460.0,105450.0,0.00049054]
[1748567844581,0.37386283,105460.0,105450.0,0.00049054]
[1748567845217,0.73694283,105460.0,105450.0,0.00049054]
[1748567845417,0.67844283,105460.0,105450.0,0.00049054]
[1748567847281,0.70580803,105460.0,105450.0,0.00049054]
[1748567848581,0.34284803,105460.0,105450.0,0.00049054]
[1748567848805,0.70572803,105460.0,105450.0,0.00049054]
[1748567850929,0.70572803,105460.0,105450.0,0.05959054]
[1748567850930,0.56288762,105460.0,105450.0,0.05959054]
[1748567851370,0.56284762,105460.0,105450.0,0.05959054]
[1748567852210,0.56284762,105460.0,105450.0,0.03009054]
[1748567852666,0.57249234,105460.0,105450.0,0.03009054]
[1748567853296,0.57249234,105460.0,105450.0,0.00049054]
[1748567854412,0.57249234,105460.0,105450.0,0.05769054]
[1748567854413,0.20012762,105460.0,105450.0,0.05769054]
[1748567854613,0.57212961,105460.0,105450.0,0.25683704]
[1748567855034,0.01048145,105460.0,105450.0,0.781472]
[1748567855256,0.001,105460.0,105450.0,0.781472]
[1748567855461,0.001,105460.0,105450.0,2.4842701]
[1748567855664,0.001,105460.0,105450.0,1.97402971]
[1748567855871,0.001,105460.0,105450.0,2.36971974]
[1748567856079,0.001,105460.0,105450.0,5.75149897]
[1748567856296,0.00948163,105460.0,105450.0,1.39468424]
[1748567856500,0.01896191,105470.0,105460.0,0.26860925]
[1748567856702,0.38140067,105480.0,105470.0,0.27767065]
[1748567856907,0.01895977,105480.0,105470.0,0.3687246]
[1748567857114,0.21802969,105490.0,105480.0,0.2492094]
[1748567857317,0.21802969,105490.0,105480.0,0.34974364]
[1748567857523,0.58038969,105490.0,105480.0,0.15065395]
[1748567857734,0.58038969,105490.0,105480.0,0.16013442]
[1748567857906,0.01895815,105490.0,105480.0,0.3592242]
[1748567858147,0.58030906,105490.0,105480.0,0.36870431]
[1748567858346,0.58030906,105490.0,105480.0,0.37818433]
[1748567858474,0.57083012,105490.0,105480.0,0.0596]
[1748567858704,0.19908987,105480.0,105470.0,0.65002738]
[1748567858904,0.19908987,105480.0,105470.0,0.7505626]
[1748567859108,0.19908987,105480.0,105470.0,0.55145395]
[1748567859918,0.19908987,105480.0,105470.0,0.4604]
[1748567860122,0.19908987,105480.0,105470.0,0.4]
[1748567860544,0.19908987,105480.0,105470.0,0.404]
[1748567861429,0.19908987,105480.0,105470.0,0.4639]
[1748567861637,0.20857007,105480.0,105470.0,0.65352738]
[1748567861847,0.21804982,105480.0,105470.0,0.75406269]
[1748567862059,0.39048042,105480.0,105470.0,0.78250569]
[1748567862277,0.58957029,105480.0,105470.0,0.77302496]
[1748567862559,0.01896013,105480.0,105470.0,0.78250569]
[1748567862790,0.1896094,105480.0,105470.0,0.71517807]
[1748567863006,0.56104969,105480.0,105470.0,0.55495395]
[1748567863426,0.56104969,105480.0,105470.0,0.004]
[1748567863804,0.56104969,105480.0,105470.0,0.002]
[1748567864017,0.19910874,105470.0,105460.0,0.4599]
[1748567864604,0.19910874,105470.0,105460.0,0.65902753]
[1748567864787,0.19910874,105470.0,105460.0,0.4599]
[1748567865025,0.19910874,105470.0,105460.0,0.47886443]
[1748567865367,0.18962738,105470.0,105460.0,0.4619]
[1748567865580,0.18962738,105470.0,105460.0,0.67050979]
[1748567865785,0.18962738,105470.0,105460.0,0.4619]
[1748567866324,0.18962738,105470.0,105460.0,0.47138217]
[1748567866550,0.18962738,105470.0,105460.0,0.67250961]
[1748567866727,0.18962738,105470.0,105460.0,0.27250961]
[1748567866925,0.18962738,105470.0,105460.0,0.26302753]
[1748567867127,0.18962738,105470.0,105460.0,0.0639]
[1748567867329,0.18962738,105470.0,105460.0,0.47338226]
[1748567867796,0.18962738,105470.0,105460.0,0.4639]
[1748567868005,0.18962738,105470.0,105460.0,0.404]
[1748567868528,0.18962738,105470.0,105460.0,0.002]
[1748567868736,0.21792738,105470.0,105460.0,0.002]
[1748567868972,0.19912744,105460.0,105450.0,0.00400529]
[1748567869193,0.65178139,105460.0,105450.0,0.00400529]
[1748567869596,0.56072744,105460.0,105450.0,0.00400529]
[1748567870268,0.19912744,105460.0,105450.0,0.00400529]
[1748567870398,0.56068744,105460.0,105450.0,0.00400529]
[1748567871483,0.58948744,105460.0,105450.0,0.00400529]
[1748567872051,0.59048744,105460.0,105450.0,0.00400529]
[1748567872176,0.56168744,105460.0,105450.0,0.00400529]
[1748567873092,0.20012744,105460.0,105450.0,0.00400529]
[1748567873267,0.56152744,105460.0,105450.0,0.00400529]
[1748567873951,0.20960943,105460.0,105450.0,0.26275161]
[1748567874180,0.57096943,105460.0,105450.0,0.26275161]
[1748567874396,0.38132407,105460.0,105450.0,0.37277089]
[1748567874579,0.39080624,105460.0,105450.0,0.35380556]
[1748567874842,0.57096961,105460.0,105450.0,0.15465924]
[1748567875241,0.56148753,105460.0,105450.0,0.15465924]
[1748567875771,0.56048753,105460.0,105450.0,0.15465924]
[1748567876417,0.56048753,105460.0,105450.0,0.34632258]
[1748567876636,0.56048753,105460.0,105450.0,0.35580574]
[1748567876840,0.55100536,105460.0,105450.0,0.1641424]
[1748567877056,0.55100536,105460.0,105450.0,0.15465924]
[1748567877248,0.55100536,105460.0,105450.0,0.15865924]
[1748567877451,0.55100536,105460.0,105450.0,0.55865924]
[1748567877705,0.55100536,105460.0,105450.0,0.75780565]
[1748567877964,0.0189638,105460.0,105450.0,0.71717098]
[1748567878171,0.58867156,105470.0,105460.0,0.056]
[1748567878347,0.58867156,105470.0,105460.0,0.14705395]
[1748567878348,0.56970983,105470.0,105460.0,0.14705395]
[1748567878554,0.56970983,105470.0,105460.0,0.34618157]
[1748567878760,0.20858983,105470.0,105460.0,0.36514564]
[1748567878964,0.56966983,105470.0,105460.0,0.37462745]
[1748567879383,0.00948082,105470.0,105460.0,0.37462745]
[1748567879591,0.38948229,105470.0,105460.0,0.30914465]
[1748567879990,0.38000138,105470.0,105460.0,0.30914465]
[1748567880211,0.01896138,105470.0,105460.0,0.36954465]
[1748567880419,0.56956971,105480.0,105470.0,0.26898965]
[1748567880626,0.58853056,105480.0,105470.0,0.3505626]
[1748567880841,0.37996067,105480.0,105470.0,0.76952433]
[1748567881049,0.00947975,105480.0,105470.0,0.76952433]
[1748567881263,0.01895797,105490.0,105480.0,0.27844946]
[1748567881478,0.39887648,105490.0,105480.0,0.37898334]
[1748567881698,0.40835659,105490.0,105480.0,0.36950359]
[1748567881918,0.40835659,105490.0,105480.0,0.37898343]
[1748567881919,0.38935754,105490.0,105480.0,0.37898343]
[1748567882360,0.00947876,105490.0,105480.0,0.37898343]
[1748567882594,0.40279594,105490.0,105480.0,0.37898343]
[1748567882806,0.39331673,105490.0,105480.0,0.37898343]
[1748567883030,0.39131673,105490.0,105480.0,0.37898343]
[1748567883261,0.40079594,105490.0,105480.0,0.37898343]
[1748567883483,0.40071594,105490.0,105480.0,0.39792416]
[1748567883702,0.40819533,105490.0,105480.0,0.39792416]
[1748567884160,0.57882915,105490.0,105480.0,0.37048437]
[1748567884391,0.57882915,105490.0,105480.0,0.77996439]
[1748567884615,0.56935012,105490.0,105480.0,0.49105395]
[1748567884831,0.56935012,105490.0,105470.0,0.03231704]
[1748567884832,0.20858947,105470.0,105460.0,0.40181704]
[1748567885050,0.20858947,105470.0,105460.0,0.48935395]
[1748567885051,0.56930947,105470.0,105460.0,0.48935395]
[1748567885530,0.56930947,105470.0,105460.0,0.88935395]
[1748567885744,0.56930947,105470.0,105460.0,0.75796347]
[1748567886182,0.56930947,105470.0,105460.0,0.54935395]
[1748567886396,0.55034738,105470.0,105460.0,0.49105395]
[1748567886826,0.55034738,105470.0,105460.0,0.49405395]
[1748567887035,0.55034738,105470.0,105460.0,0.71389931]
[1748567887242,0.55034738,105470.0,105460.0,0.76346356]
[1748567887655,0.01896209,105470.0,105460.0,0.78542709]
[1748567887890,0.39844391,105470.0,105460.0,0.92028772]
[1748567888110,0.38896264,105470.0,105460.0,0.78890872]
[1748567888326,0.37000064,105470.0,105460.0,0.95365772]
[1748567888539,0.00947984,105480.0,105470.0,0.2763702]
[1748567888749,0.38891997,105480.0,105470.0,0.36742415]
[1748567888954,0.39840026,105480.0,105470.0,0.36742415]
[1748567889170,0.0094793,105490.0,105480.0,0.26686962]
[1748567889392,0.3983563,105490.0,105480.0,0.36740323]
[1748567889608,0.40783569,105490.0,105480.0,0.36740323]
[1748567889829,0.56899039,105490.0,105480.0,0.14935395]
[1748567890043,0.56899039,105490.0,105460.0,0.46381636]
[1748567890044,0.19910856,105470.0,105460.0,0.46381636]
[1748567890250,0.20858965,105470.0,105460.0,0.66690961]
[1748567890462,0.21807101,105470.0,105460.0,0.67639142]
[1748567890676,0.21807101,105470.0,105460.0,0.66690961]
[1748567890883,0.21807101,105470.0,105460.0,0.76744546]
[1748567890884,0.20858965,105470.0,105460.0,0.76744546]
[1748567891098,0.20858965,105470.0,105460.0,0.77692727]
[1748567891308,0.19910856,105470.0,105460.0,0.49105395]
[1748567891523,0.01896209,105470.0,105460.0,0.73844519]
[1748567891740,0.02844336,105470.0,105460.0,0.77892709]
[1748567891964,0.01896209,105470.0,105460.0,0.77892709]
[1748567892174,0.02844336,105470.0,105460.0,0.77892709]
[1748567892397,0.18959143,105490.0,105480.0,0.19908969]
[1748567892611,0.18959143,105490.0,105480.0,0.33820413]
[1748567892612,0.35895833,105490.0,105480.0,0.33820413]
[1748567892879,0.72863772,105490.0,105480.0,0.37838397]
[1748567893103,0.7381172,105490.0,105480.0,0.37838397]
[1748567893340,0.3791577,105490.0,105480.0,0.36890296]
[1748567893547,0.38863682,105490.0,105480.0,0.76890296]
[1748567893752,0.38859682,105490.0,105480.0,0.76890296]
[1748567893966,0.3791177,105490.0,105480.0,0.76890296]
[1748567894179,0.0209577,105490.0,105480.0,0.76890296]
[1748567894397,0.03043682,105490.0,105480.0,0.76890296]
[1748567894610,0.04191639,105490.0,105480.0,0.7594233]
[1748567894822,0.22002906,105490.0,105480.0,0.74994373]
[1748567895033,0.21902906,105490.0,105480.0,0.73032393]
[1748567895534,0.01995815,105490.0,105480.0,0.7773837]
[1748567895819,0.02943754,105490.0,105480.0,0.7773837]
[1748567896567,0.01047894,105490.0,105480.0,0.7773837]
[1748567896874,0.001,105490.0,105480.0,0.3773837]
[1748567897349,0.001,105490.0,105480.0,2.15053941]
[1748567897352,0.001,105490.0,105480.0,2.51049941]
[1748567897828,0.001,105490.0,105480.0,2.52968959]
[1748567898785,0.001,105490.0,105480.0,5.89544485]
[1748567899029,0.001,105490.0,105480.0,3.34345039]
[1748567899271,0.001,105490.0,105480.0,3.27025139]
[1748567899510,0.001,105490.0,105480.0,3.27125139]
[1748567899790,0.001,105490.0,105480.0,4.17190636]
[1748567900029,0.00947714,105510.0,105500.0,0.27740838]
[1748567900265,0.00947714,105510.0,105500.0,0.36846233]
[1748567900536,0.02843187,105510.0,105500.0,0.36846242]
[1748567900780,0.01895455,105510.0,105500.0,0.37794046]
[1748567901029,0.00947714,105510.0,105500.0,0.77794046]
[1748567901234,0.00947714,105510.0,105500.0,0.77793983]
[1748567901658,0.21993867,105510.0,105500.0,0.69010589]
[1748567901863,0.03791,105510.0,105500.0,0.70058429]
[1748567902068,0.2199393,105510.0,105500.0,0.69110607]
[1748567902286,0.21798835,105510.0,105500.0,0.70158447]
[1748567902497,0.02843214,105510.0,105500.0,0.7110626]
[1748567902711,0.03038309,105510.0,105500.0,0.71006269]
[1748567902971,0.03038309,105510.0,105500.0,0.73806269]
[1748567903243,0.03038309,105510.0,105500.0,0.70906278]
[1748567903485,0.04086086,105510.0,105500.0,0.70906278]
[1748567903730,0.04086086,105510.0,105500.0,0.69958447]
[1748567903954,0.04086086,105510.0,105500.0,0.70906278]
[1748567904212,0.0219055,105510.0,105500.0,0.72801913]
[1748567904446,0.01047714,105510.0,105500.0,0.7280185]
[1748567904695,0.001,105510.0,105500.0,0.7871185]
[1748567904935,0.01047705,105510.0,105500.0,0.7871185]
[1748567905183,0.01047696,105510.0,105500.0,0.7871185]
[1748567905431,0.001,105510.0,105500.0,0.3871185]
[1748567905911,0.001,105510.0,105500.0,0.7871185]
[1748567906402,0.39726586,105520.0,105500.0,0.7871185]
[1748567906643,0.39726586,105520.0,105510.0,0.36904167]
[1748567906880,0.40674264,105520.0,105510.0,0.36904167]
[1748567907097,0.59628016,105520.0,105510.0,0.35956453]
[1748567907311,0.59628079,105520.0,105510.0,0.36904185]
[1748567907532,0.22744437,105520.0,105510.0,0.36904185]
[1748567907741,0.22744437,105520.0,105510.0,0.37851908]
[1748567908016,0.01895275,105520.0,105510.0,0.35956471]
[1748567908228,0.21208581,105530.0,105520.0,0.28504356]
[1748567908229,0.02247138,105530.0,105520.0,0.28504356]
[1748567908438,0.02247138,105530.0,105520.0,0.37609751]
[1748567908866,0.02247138,105530.0,105520.0,0.77141876]
[1748567909079,0.02247138,105530.0,105520.0,0.37609751]
[1748567909319,0.02247138,105530.0,105520.0,1.59871951]
[1748567909534,0.02247138,105530.0,105520.0,0.95087043]
[1748567909744,0.02447138,105530.0,105520.0,0.84899743]
[1748567910192,0.02647138,105530.0,105520.0,1.24899743]
[1748567910621,0.02647138,105530.0,105520.0,1.24549551]
[1748567910837,0.02647138,105530.0,105520.0,1.07522651]
[1748567911062,0.02647138,105530.0,105520.0,0.54865395]
[1748567911063,0.05489795,105530.0,105520.0,0.54865395]
[1748567911283,0.2368932,105530.0,105520.0,0.49105395]
[1748567911496,0.23494225,105530.0,105520.0,0.69954494]
[1748567912129,0.23494225,105530.0,105520.0,0.69954503]
[1748567912341,0.23494225,105530.0,105520.0,0.71849814]
[1748567912759,0.23494225,105530.0,105520.0,0.50053082]
[1748567912965,0.21599094,105530.0,105520.0,0.69954503]
[1748567913189,0.21599094,105530.0,105520.0,0.70902163]
[1748567913619,0.21599094,105530.0,105520.0,0.69006834]
[1748567913822,0.21599094,105530.0,105520.0,0.69954503]
[1748567914036,0.21599094,105530.0,105520.0,0.4]
[1748567914243,0.57479094,105530.0,105520.0,0.4]
[1748567914691,0.63209094,105530.0,105520.0,0.4]
[1748567915147,0.63209094,105530.0,105510.0,0.00947777]
[1748567915148,0.19901421,105520.0,105510.0,0.00947777]
[1748567915356,0.20849081,105520.0,105510.0,0.19903326]
[1748567915571,0.02843007,105520.0,105510.0,0.21798799]
[1748567915847,0.03781957,105520.0,105510.0,0.65536513]
[1748567916064,0.03781957,105520.0,105510.0,0.74641908]
[1748567916065,0.01895239,105520.0,105510.0,0.74641908]
[1748567916280,0.03790541,105520.0,105510.0,0.77661908]
[1748567916490,0.0189523,105520.0,105510.0,1.44055008]
[1748567916700,0.0189523,105520.0,105510.0,1.08469708]
[1748567916921,0.02942872,105520.0,105510.0,1.08469708]
[1748567917128,0.03890532,105520.0,105510.0,0.89015408]
[1748567917556,0.03890532,105520.0,105510.0,0.74818721]
[1748567917557,0.21896741,105520.0,105510.0,0.74818721]
[1748567917766,0.21896741,105520.0,105510.0,0.49105395]
[1748567917767,0.20949099,105520.0,105510.0,0.49105395]
[1748567917967,0.20949099,105520.0,105510.0,0.4]
[1748567918173,0.20949099,105520.0,105510.0,0.40947777]
[1748567918415,0.20949099,105520.0,105510.0,0.4]
[1748567918754,0.20949099,105520.0,105510.0,0.40947777]
[1748567919794,0.20949099,105520.0,105510.0,0.4]
[1748567920659,0.21800811,105500.0,105490.0,1.21163631]
[1748567920833,0.02843439,105500.0,105490.0,1.35099745]
[1748567921033,0.02843439,105500.0,105490.0,1.75099745]
[1748567921256,0.03791288,105500.0,105490.0,1.78009745]
[1748567921471,0.23696491,105500.0,105490.0,1.77061851]
[1748567921672,0.23696572,105500.0,105490.0,1.77061851]
[1748567921908,0.22748759,105500.0,105490.0,1.75379763]
[1748567922114,0.01895689,105500.0,105490.0,1.76627657]
[1748567922319,0.01895689,105500.0,105490.0,1.79557657]
[1748567922705,0.02843547,105500.0,105490.0,1.75874612]
[1748567922895,0.21800892,105500.0,105490.0,0.94861956]
[1748567923222,0.20853052,105500.0,105490.0,0.40604904]
[1748567923850,0.20853052,105500.0,105490.0,0.41552861]
[1748567924233,0.20853052,105500.0,105490.0,0.61459952]
[1748567924437,0.20853052,105500.0,105490.0,0.62107891]
[1748567924660,0.20853052,105500.0,105490.0,0.63055812]
[1748567924869,0.21800919,105500.0,105490.0,0.6723367]
[1748567925034,0.00947822,105500.0,105490.0,0.78539002]
[1748567925238,0.01895617,105500.0,105490.0,0.78539002]
[1748567925436,0.0284343,105500.0,105490.0,0.79039002]
[1748567925638,0.03791279,105500.0,105490.0,0.79039002]
[1748567925838,0.03791279,105500.0,105490.0,0.78739002]
[1748567926212,0.04739137,105500.0,105490.0,0.77791117]
[1748567926419,0.04739137,105500.0,105490.0,0.38939011]
[1748567926639,0.03791279,105500.0,105490.0,0.38939011]
[1748567926860,0.0284343,105500.0,105490.0,0.78939011]
[1748567927063,0.03791279,105500.0,105490.0,0.78939011]
[1748567927692,0.00947795,105500.0,105490.0,0.78939011]
[1748567927992,0.03791252,105500.0,105490.0,0.79288963]
[1748567928225,0.03791252,105500.0,105490.0,0.78939011]
[1748567928866,0.04739101,105500.0,105490.0,0.79288963]
[1748567929490,0.04739173,105500.0,105490.0,0.77393166]
[1748567929700,0.22748714,105500.0,105490.0,0.77043214]
[1748567929905,0.03791369,105500.0,105490.0,0.77043214]
[1748567930105,0.02843502,105500.0,105490.0,0.77991108]
[1748567931373,0.01895599,105500.0,105490.0,0.77991108]
[1748567931584,0.00947786,105500.0,105490.0,0.77991108]
[1748567931797,0.03791252,105500.0,105490.0,0.77991108]
[1748567932011,0.02843403,105500.0,105490.0,0.77991108]
[1748567932221,0.00947786,105500.0,105490.0,1.6698206]
[1748567932434,0.01895599,105500.0,105490.0,1.6163446]
[1748567932646,0.02843385,105500.0,105490.0,1.5172666]
[1748567932856,0.03791207,105500.0,105490.0,1.2412296]
[1748567933030,0.0473911,105500.0,105490.0,0.7834106]
[1748567933486,0.22748714,105500.0,105490.0,0.76445254]
[1748567933702,0.23696581,105500.0,105490.0,0.77043214]
[1748567933921,0.04739236,105500.0,105490.0,0.77991117]
[1748567934367,0.22748759,105500.0,105490.0,0.71313214]
[1748567935287,0.22748759,105500.0,105490.0,0.72261117]
[1748567936050,0.21800919,105500.0,105490.0,0.71313214]
[1748567936431,0.19905212,105500.0,105490.0,0.40404904]
[1748567937225,0.22695212,105500.0,105490.0,0.00404904]
[1748567937442,0.25585212,105500.0,105490.0,0.00404904]
[1748567939583,0.61305212,105500.0,105490.0,0.00404904]
[1748567940341,0.62759297,105500.0,105490.0,0.00404904]
[1748567940563,0.00947813,105500.0,105490.0,0.37413169]
[1748567940785,0.22746558,105510.0,105500.0,0.23913052]
[1748567940992,0.22746558,105510.0,105500.0,0.061]
[1748567940993,0.56563085,105510.0,105500.0,0.061]
[1748567941213,0.56563085,105510.0,105500.0,0.25057345]
[1748567941214,0.56559085,105510.0,105500.0,0.25057345]
[1748567941430,0.56559085,105510.0,105500.0,0.26005194]
[1748567941646,0.55611326,105510.0,105500.0,0.061]
[1748567941851,0.54663549,105510.0,105500.0,0.061]
[1748567942280,0.00947831,105500.0,105490.0,0.37022504]
[1748567942487,0.00947831,105500.0,105490.0,0.37122504]
[1748567943121,0.01895653,105500.0,105490.0,0.37022504]
[1748567943544,0.00947795,105500.0,105490.0,0.37022504]
[1748567943749,0.02843448,105500.0,105490.0,0.36673169]
[1748567943973,0.02843439,105500.0,105490.0,0.37122784]
[1748567944458,0.0284343,105500.0,105490.0,0.37222784]
[1748567944969,0.03791279,105500.0,105490.0,0.37222784]
[1748567945198,0.01895599,105500.0,105490.0,0.37222784]
[1748567945414,0.02843421,105500.0,105490.0,0.37222784]
[1748567946046,0.02843421,105500.0,105490.0,0.77222784]
[1748567946257,0.01895509,105510.0,105500.0,0.26593016]
[1748567946471,0.02090604,105510.0,105500.0,0.35698411]
[1748567946679,0.21798781,105510.0,105500.0,0.35698411]
[1748567946895,0.21798781,105510.0,105500.0,0.36048026]
[1748567947106,0.0284316,105510.0,105500.0,0.3699583]
[1748567947313,0.0379091,105510.0,105500.0,0.3699583]
[1748567947526,0.0379091,105510.0,105500.0,0.38875161]
[1748567947737,0.0379091,105510.0,105500.0,0.38525546]
[1748567947955,0.0379091,105510.0,105500.0,0.38875325]
[1748567948378,0.04738687,105510.0,105500.0,0.37927521]
[1748567948583,0.0379091,105510.0,105500.0,0.39823138]
[1748567948815,0.04688678,105510.0,105500.0,0.39823138]
[1748567949029,0.23644308,105510.0,105500.0,0.38875334]
[1748567949472,0.01845455,105510.0,105500.0,0.39823138]
[1748567949681,0.02793205,105510.0,105500.0,0.79823138]
[1748567949902,0.03740964,105510.0,105500.0,0.79823138]
[1748567950106,0.02793205,105510.0,105500.0,0.79823138]
[1748567950313,0.00947696,105510.0,105500.0,0.79823075]
[1748567950542,0.37543311,105520.0,105510.0,0.24818799]
[1748567950751,0.5744475,105520.0,105510.0,0.35068721]
[1748567950959,0.5744475,105520.0,105510.0,0.3601648]
[1748567951398,0.57430269,105520.0,105510.0,0.3601648]
[1748567952026,0.57630269,105520.0,105510.0,0.3696423]
[1748567952231,0.38876517,105520.0,105510.0,0.37911953]
[1748567952461,0.57830269,105520.0,105510.0,0.3696423]
[1748567953316,0.57830269,105520.0,105510.0,0.37911971]
[1748567954001,0.57830269,105520.0,105510.0,0.77911971]
[1748567954210,0.02280776,105520.0,105510.0,0.78859685]
[1748567954424,0.40743792,105520.0,105510.0,0.78859685]
[1748567954629,0.37915329,105520.0,105510.0,0.77911935]
[1748567954837,0.57816768,105520.0,105510.0,0.75068721]
[1748567955044,0.56869117,105520.0,105510.0,0.56113172]
[1748567955254,0.56869117,105520.0,105510.0,0.76964248]
[1748567955475,0.56869117,105520.0,105510.0,4.96909828]
[1748567955476,0.004,105520.0,105510.0,4.96909828]
[1748567955690,0.004,105520.0,105510.0,6.3955096]
[1748567955907,0.004,105520.0,105510.0,6.39082234]